bitfinex/quotes_BTCUSD_20250814
["timestamp","ask_amount","ask_price","bid_price","bid_amount"]
[1755179998716,0.17736537,118400.0,118390.0,0.00519]
[1755179998885,0.17736537,118400.0,118390.0,0.17412318]
[1755179999081,0.17736537,118400.0,118390.0,0.00519]
[1755179999285,0.16893318,118390.0,118380.0,0.00316]
[1755179999517,0.90130904,118390.0,118380.0,0.00203]
[1755179999683,0.16894745,118380.0,118360.0,0.18084696]
[1755179999889,0.16896173,118370.0,118360.0,0.18084696]
[1755180000111,0.16896173,118370.0,118360.0,0.18287696]
[1755180000320,0.08272325,118380.0,118370.0,0.16896173]
[1755180000539,0.16893318,118390.0,118380.0,0.16894745]
[1755180000774,0.08272325,118390.0,118380.0,0.17613745]
[1755180001200,0.69918543,118410.0,118390.0,0.16892058]
[1755180001414,0.19655543,118410.0,118400.0,0.17094891]
[1755180001842,0.23649039,118420.0,118400.0,0.17410891]
[1755180002054,0.08272325,118410.0,118400.0,0.17094891]
[1755180002694,0.08272325,118410.0,118400.0,0.17457699]
[1755180003205,0.08372325,118410.0,118400.0,0.17457699]
[1755180003622,0.90228051,118410.0,118400.0,0.00046808]
[1755180003822,0.90342051,118410.0,118400.0,0.00046808]
[1755180004018,0.4150979,118410.0,118400.0,0.00046808]
[1755180004224,1.05951051,118410.0,118400.0,0.16938699]
[1755180004448,0.4119079,118410.0,118400.0,0.16938699]
[1755180004904,0.4119079,118410.0,118400.0,0.00046808]
[1755180005104,0.90342051,118410.0,118400.0,0.00046808]
[1755180005736,1.24342051,118410.0,118400.0,0.00046808]
[1755180006569,0.2526279,118410.0,118400.0,0.00046808]
[1755180007016,0.2526279,118410.0,118400.0,0.16938699]
[1755180007571,0.2526279,118410.0,118400.0,0.00046808]
[1755180008388,0.90333051,118410.0,118400.0,0.00046808]
[1755180009250,0.98581494,118410.0,118400.0,0.00046808]
[1755180009552,0.90333051,118410.0,118400.0,0.00046808]
[1755180010946,0.2557279,118410.0,118400.0,0.00046808]
[1755180011111,0.90333051,118410.0,118400.0,0.00046808]
[1755180012145,1.26210862,118410.0,118400.0,0.00046808]
[1755180012408,1.31661436,118410.0,118400.0,0.00046808]
[1755180012606,1.34902764,118410.0,118400.0,0.00046808]
[1755180012823,0.81657861,118360.0,118350.0,0.32791028]
[1755180012964,0.08272325,118360.0,118350.0,0.17266543]
[1755180015126,0.08272325,118360.0,118350.0,0.17466543]
[1755180015726,0.10197537,118360.0,118350.0,0.17245543]
[1755180016225,0.08272325,118360.0,118350.0,0.17245543]
[1755180016438,0.07860917,118360.0,118350.0,0.17245543]
[1755180016644,0.07860917,118360.0,118350.0,0.33446543]
[1755180017176,0.07860917,118360.0,118350.0,0.33655543]
[1755180018125,0.07860917,118360.0,118350.0,0.17775543]
[1755180018286,0.07860917,118360.0,118350.0,0.33655543]
[1755180018898,0.07831544,118360.0,118350.0,0.33655543]
[1755180019641,0.07831544,118360.0,118350.0,0.33334543]
[1755180020073,0.24943144,118360.0,118350.0,0.33326543]
[1755180020286,0.25253144,118360.0,118350.0,0.33117543]
[1755180020491,1.32261848,118360.0,118350.0,0.00346515]
[1755180020655,1.39877405,118360.0,118350.0,0.00346515]
[1755180021299,1.39877405,118360.0,118350.0,0.00146515]
[1755180021515,0.16900245,118350.0,118330.0,0.33606828]
[1755180021888,0.25172781,118340.0,118330.0,0.33654906]
[1755180022065,0.25386781,118340.0,118330.0,0.18003906]
[1755180022278,0.08272325,118340.0,118330.0,0.18003906]
[1755180022484,0.08272325,118340.0,118330.0,0.18324906]
[1755180022684,0.08272325,118340.0,118330.0,0.34180906]
[1755180022889,0.08272325,118340.0,118330.0,0.34280906]
[1755180023298,0.08272325,118340.0,118330.0,0.34180906]
[1755180023505,0.08272325,118340.0,118330.0,0.34280906]
[1755180024125,0.25172781,118340.0,118330.0,0.34280906]
[1755180024272,0.25172781,118340.0,118330.0,0.34480906]
[1755180024468,0.25172781,118340.0,118330.0,0.18303906]
[1755180024680,0.08272325,118340.0,118330.0,0.34151906]
[1755180024881,0.25386781,118340.0,118330.0,0.33951906]
[1755180025132,0.25696781,118340.0,118330.0,0.00148078]
[1755180025544,0.25696781,118340.0,118330.0,0.00348078]
[1755180025854,0.25386781,118340.0,118330.0,0.17358962]
[1755180026246,0.25486781,118340.0,118330.0,0.17358962]
[1755180026946,0.25486781,118340.0,118330.0,0.16301078]
[1755180027308,0.25796781,118340.0,118330.0,0.33202962]
[1755180027511,0.25486781,118340.0,118330.0,0.33202962]
[1755180027738,0.25486781,118340.0,118330.0,0.33002962]
[1755180027945,0.25486781,118340.0,118330.0,0.33102962]
[1755180028120,0.25486781,118340.0,118330.0,0.16201078]
[1755180028346,0.25213187,118340.0,118330.0,0.00357078]
[1755180028498,0.25213187,118340.0,118330.0,0.17258962]
[1755180029368,0.08098731,118340.0,118330.0,0.17579962]
[1755180029580,0.001,118340.0,118330.0,0.17579962]
[1755180029795,0.001,118340.0,118330.0,0.84085125]
[1755180030002,0.001,118340.0,118330.0,1.2486048]
[1755180030212,0.001,118340.0,118330.0,1.3169448]
[1755180031075,0.001,118340.0,118330.0,1.24819125]
[1755180031485,0.002,118340.0,118330.0,0.53624864]
[1755180031901,0.16899028,118350.0,118330.0,0.18325056]
[1755180032113,0.08582325,118350.0,118340.0,0.16900456]
[1755180032336,0.08486325,118350.0,118340.0,0.17109456]
[1755180032548,0.08486325,118350.0,118340.0,0.17430456]
[1755180032549,0.08272325,118350.0,118340.0,0.17430456]
[1755180033177,0.19122489,118370.0,118360.0,0.168976]
[1755180033385,0.27298814,118370.0,118360.0,0.171066]
[1755180034261,0.27298814,118370.0,118360.0,0.00209]
[1755180034470,0.27298814,118370.0,118350.0,0.32713779]
[1755180034683,0.25169925,118360.0,118350.0,0.15816]
[1755180034909,0.001,118350.0,118340.0,0.17745478]
[1755180035161,0.16999028,118350.0,118340.0,0.18054478]
[1755180035396,0.16899028,118350.0,118340.0,0.33758478]
[1755180035612,0.25695353,118350.0,118330.0,0.33599056]
[1755180035838,0.16900456,118340.0,118330.0,0.33599056]
[1755180036049,0.00214,118340.0,118330.0,0.33808056]
[1755180036251,0.00214,118340.0,118330.0,0.18004056]
[1755180036466,0.17014456,118340.0,118330.0,0.33804056]
[1755180036693,0.25478781,118340.0,118330.0,0.00048078]
[1755180036900,0.25478781,118340.0,118330.0,0.32749962]
[1755180037107,0.25172781,118340.0,118330.0,0.32849962]
[1755180037307,0.25172781,118340.0,118330.0,0.33163962]
[1755180037521,0.08272325,118340.0,118330.0,0.33163962]
[1755180037973,0.25172781,118340.0,118330.0,0.32849962]
[1755180038186,0.08072325,118340.0,118330.0,0.32849962]
[1755180038408,0.08072325,118340.0,118330.0,0.33163962]
[1755180038604,0.10058453,118350.0,118340.0,0.16900456]
[1755180038824,0.18330778,118350.0,118340.0,0.16900456]
[1755180039044,0.08272325,118350.0,118340.0,0.16900456]
[1755180039277,0.08272325,118350.0,118340.0,0.17214456]
[1755180039497,0.19657297,118370.0,118360.0,0.168976]
[1755180039498,0.69445297,118370.0,118360.0,0.168976]
[1755180039715,0.61929622,118370.0,118350.0,0.32687028]
[1755180039926,0.08272325,118360.0,118350.0,0.33001028]
[1755180040151,0.25169925,118360.0,118350.0,0.33001028]
[1755180040364,0.25169925,118360.0,118350.0,0.32687028]
[1755180040817,0.61189028,118350.0,118340.0,0.10750971]
[1755180041034,0.4429,118350.0,118340.0,0.11595993]
[1755180041238,0.4429,118350.0,118340.0,0.11807248]
[1755180041471,0.4429,118350.0,118340.0,0.11595993]
[1755180041938,0.4429,118350.0,118340.0,0.27375993]
[1755180042152,0.61189028,118350.0,118340.0,0.27375993]
[1755180042386,0.4429,118350.0,118340.0,0.27061993]
[1755180042586,0.61189028,118350.0,118340.0,0.27061993]
[1755180042813,1.34527614,118350.0,118340.0,0.001]
[1755180043029,0.25477353,118350.0,118340.0,0.001]
[1755180043241,0.90237614,118350.0,118340.0,0.001]
[1755180043653,0.25477353,118350.0,118340.0,0.001]
[1755180044374,0.16900456,118340.0,118330.0,0.32717899]
[1755180044661,0.08272325,118340.0,118330.0,0.32717899]
[1755180044847,0.17205028,118350.0,118340.0,0.16900456]
[1755180045140,0.25271353,118350.0,118330.0,0.33031899]
[1755180045346,0.08272325,118350.0,118340.0,0.16900456]
[1755180045597,0.25171353,118350.0,118340.0,0.17214456]
[1755180046035,0.0015,118350.0,118340.0,0.17214456]
[1755180046248,0.0015,118350.0,118340.0,0.17767996]
[1755180046872,0.0025,118350.0,118340.0,0.17767996]
[1755180047076,0.0025,118350.0,118340.0,0.82528257]
[1755180047517,0.0025,118350.0,118340.0,0.17767996]
[1755180047726,0.0025,118350.0,118340.0,0.33523996]
[1755180047929,0.0025,118350.0,118340.0,0.33070456]
[1755180048140,0.0015,118350.0,118340.0,0.33070456]
[1755180048344,0.0015,118350.0,118340.0,0.32970456]
[1755180048684,0.0015,118350.0,118340.0,0.17314456]
[1755180048870,0.0015,118350.0,118340.0,0.32752456]
[1755180049313,0.0015,118350.0,118340.0,0.32748456]
[1755180049520,0.17049028,118350.0,118340.0,0.15848]
[1755180049718,0.17049028,118350.0,118340.0,0.001]
[1755180049933,0.17049028,118350.0,118340.0,0.15844]
[1755180050340,0.25627353,118350.0,118340.0,0.001]
[1755180050590,0.16900456,118340.0,118330.0,0.32693843]
[1755180050882,0.16900456,118340.0,118330.0,0.15792078]
[1755180051126,0.16900456,118340.0,118330.0,0.32693962]
[1755180052155,0.17000456,118340.0,118330.0,0.32693962]
[1755180052537,0.17000456,118340.0,118330.0,0.15892078]
[1755180052950,0.17000456,118340.0,118330.0,0.32793962]
[1755180053575,0.001,118340.0,118330.0,0.33107962]
[1755180054353,0.001,118340.0,118330.0,0.35643262]
[1755180054586,0.001,118340.0,118330.0,0.19899262]
[1755180054788,0.001,118340.0,118330.0,0.35627262]
[1755180055335,0.001,118340.0,118330.0,1.02132425]
[1755180055787,0.001,118340.0,118330.0,0.35619262]
[1755180056770,0.001,118340.0,118330.0,0.36358808]
[1755180056968,0.001,118340.0,118330.0,0.19899262]
[1755180057177,0.001,118340.0,118330.0,0.35301262]
[1755180057778,0.17000456,118340.0,118330.0,0.35301262]
[1755180058019,0.001,118340.0,118330.0,0.35301262]
[1755180058249,0.001,118340.0,118330.0,0.35615262]
[1755180058418,0.001,118340.0,118330.0,0.19899262]
[1755180058621,0.17000456,118340.0,118330.0,0.19899262]
[1755180058817,0.17000456,118340.0,118330.0,0.35607262]
[1755180059036,0.17000456,118340.0,118330.0,0.19585262]
[1755180059221,0.17306456,118340.0,118330.0,0.18387378]
[1755180059454,0.17306456,118340.0,118330.0,0.35289262]
[1755180059784,0.17508456,118340.0,118330.0,0.35289262]
[1755180060233,0.25780781,118340.0,118330.0,0.35289262]
[1755180060466,0.25780781,118340.0,118330.0,0.02683378]
[1755180060777,0.25780781,118340.0,118330.0,0.18387378]
[1755180061058,0.25780781,118340.0,118330.0,0.02683378]
[1755180061059,0.59780781,118340.0,118330.0,0.02683378]
[1755180061298,1.32789485,118340.0,118330.0,0.00148078]
[1755180061535,1.24541042,118340.0,118330.0,0.00148078]
[1755180061752,0.59780781,118340.0,118330.0,0.00148078]
[1755180062395,0.75476781,118340.0,118330.0,0.00148078]
[1755180062531,0.16901884,118330.0,118320.0,0.35172942]
[1755180062736,0.25376209,118330.0,118320.0,0.35180785]
[1755180062945,0.25376209,118330.0,118320.0,0.35382785]
[1755180063967,0.08474325,118330.0,118320.0,0.35382785]
[1755180064331,0.25376209,118330.0,118320.0,0.35482785]
[1755180064736,0.25376209,118330.0,118320.0,0.18377621]
[1755180064952,0.25682209,118330.0,118320.0,0.35280934]
[1755180065547,0.25376209,118330.0,118320.0,0.35280934]
[1755180066240,0.08474325,118330.0,118320.0,0.35482934]
[1755180066451,0.08272325,118330.0,118320.0,0.35462934]
[1755180066670,0.34,118340.0,118330.0,0.16901884]
[1755180066890,0.16900456,118340.0,118330.0,0.16901884]
[1755180067113,0.17109456,118340.0,118330.0,0.32774884]
[1755180067315,0.51744133,118350.0,118340.0,0.16900456]
[1755180067533,0.60225458,118350.0,118330.0,0.17194884]
[1755180067755,0.60225458,118350.0,118340.0,0.17101456]
[1755180067756,0.42481325,118350.0,118340.0,0.17101456]
[1755180067973,0.1774248,118360.0,118350.0,0.16899028]
[1755180068185,0.26014805,118360.0,118350.0,0.33061028]
[1755180068387,0.08272325,118360.0,118350.0,0.33061028]
[1755180068595,0.23371685,118370.0,118360.0,0.168976]
[1755180068823,0.3164401,118370.0,118360.0,0.168976]
[1755180068992,0.168976,118360.0,118350.0,0.32860028]
[1755180069270,0.168976,118360.0,118350.0,0.15668]
[1755180069445,0.16899028,118350.0,118340.0,0.17745478]
[1755180069685,0.25473925,118360.0,118340.0,0.33405478]
[1755180069887,0.00049183,118350.0,118340.0,0.33405478]
[1755180070041,0.16948211,118350.0,118340.0,0.33401478]
[1755180070240,0.16948211,118350.0,118330.0,0.18039978]
[1755180070447,0.16900456,118340.0,118320.0,0.36371256]
[1755180070656,0.16901884,118330.0,118320.0,0.36078256]
[1755180071072,0.16901884,118330.0,118320.0,0.19174943]
[1755180071274,0.16901884,118330.0,118320.0,0.18329778]
[1755180071650,0.25478209,118330.0,118320.0,0.18321778]
[1755180072292,0.25174209,118330.0,118320.0,0.35225091]
[1755180072760,0.25174209,118330.0,118320.0,0.18321778]
[1755180073601,0.25478209,118330.0,118320.0,0.18321778]
[1755180074009,0.29211079,118330.0,118320.0,0.18321778]
[1755180075404,0.29211079,118330.0,118320.0,0.02573778]
[1755180075685,0.29211079,118330.0,118320.0,0.00038078]
[1755180076457,0.28907079,118330.0,118320.0,0.00038078]
[1755180077241,0.28907079,118330.0,118320.0,0.16941391]
[1755180077242,0.29116079,118330.0,118320.0,0.16941391]
[1755180077452,0.29116079,118330.0,118320.0,0.17142391]
[1755180078835,0.29116079,118330.0,118320.0,0.00239078]
[1755180079772,0.29116079,118330.0,118320.0,0.17142391]
[1755180080905,0.0373287,118330.0,118320.0,0.17435391]
[1755180081412,0.50900456,118340.0,118330.0,0.16901884]
[1755180081647,0.59381781,118340.0,118330.0,0.16901884]
[1755180081883,0.59381781,118340.0,118330.0,0.17102884]
[1755180083142,0.67630224,118340.0,118330.0,0.17102884]
[1755180083798,0.99761395,118350.0,118340.0,0.16900456]
[1755180083799,0.50948211,118350.0,118340.0,0.16900456]
[1755180084009,0.25429536,118350.0,118340.0,0.17101456]
[1755180084181,0.08530508,118350.0,118340.0,0.17101456]
[1755180084431,0.08321508,118350.0,118340.0,0.17394456]
[1755180086343,0.08321508,118350.0,118340.0,0.18172166]
[1755180086344,0.00149183,118350.0,118340.0,0.18172166]
[1755180087093,0.00049183,118350.0,118340.0,0.18172166]
[1755180087527,0.00249183,118350.0,118340.0,0.18172166]
[1755180087786,0.00458183,118350.0,118340.0,0.17879166]
[1755180087968,0.08834508,118350.0,118340.0,0.16900456]
[1755180088226,0.08934508,118350.0,118340.0,0.16900456]
[1755180088364,0.33295314,118350.0,118340.0,0.16900456]
[1755180088564,0.08934508,118350.0,118340.0,0.19435556]
[1755180088793,0.25833536,118350.0,118340.0,0.17749238]
[1755180089193,0.25833536,118350.0,118340.0,0.20284538]
[1755180089458,0.08934508,118350.0,118340.0,0.20284538]
[1755180089651,0.08630508,118350.0,118340.0,0.20485538]
[1755180089830,0.08630508,118350.0,118340.0,0.20778538]
[1755180091060,0.08421508,118350.0,118340.0,0.20778538]
[1755180091597,0.25833536,118350.0,118340.0,0.20284538]
[1755180092320,0.25833536,118350.0,118340.0,0.18944082]
[1755180092454,0.26975131,118350.0,118340.0,0.03384082]
[1755180092868,0.25833536,118350.0,118340.0,0.03384082]
[1755180093106,0.59833536,118350.0,118340.0,0.03384082]
[1755180093308,0.59833536,118350.0,118320.0,0.00038078]
[1755180093309,0.16901884,118330.0,118320.0,0.00038078]
[1755180093519,0.25383209,118330.0,118320.0,0.35234091]
[1755180093745,0.25174209,118330.0,118320.0,0.36383415]
[1755180093945,0.16901733,118340.0,118320.0,0.36383415]
[1755180094151,0.62683947,118340.0,118330.0,0.00856324]
[1755180094357,0.62683947,118340.0,118330.0,0.18463481]
[1755180094358,0.08272325,118340.0,118330.0,0.18463481]
[1755180094557,0.16900456,118340.0,118330.0,0.18252208]
[1755180095010,0.51793162,118350.0,118330.0,0.18252208]
[1755180095218,0.60065487,118350.0,118340.0,0.15548]
[1755180095430,0.60065487,118350.0,118340.0,0.3350578]
[1755180095640,0.60065487,118350.0,118340.0,0.16605324]
[1755180096053,0.60274487,118350.0,118340.0,0.3350578]
[1755180096210,0.60374487,118350.0,118340.0,0.16605324]
[1755180096419,0.6862293,118350.0,118340.0,0.01057324]
[1755180096675,0.6862293,118350.0,118340.0,0.00856324]
[1755180096892,0.6862293,118350.0,118340.0,0.1796778]
[1755180097013,0.60374487,118350.0,118340.0,0.1796778]
[1755180097215,0.60374487,118350.0,118340.0,0.01067324]
[1755180097408,0.17793162,118350.0,118340.0,0.1828978]
[1755180097864,0.17893162,118350.0,118340.0,0.1828978]
[1755180098066,0.17893162,118350.0,118340.0,0.01389324]
[1755180098274,0.18406162,118350.0,118340.0,0.00856324]
[1755180098472,0.16900456,118340.0,118330.0,0.34985284]
[1755180098672,0.17097456,118340.0,118330.0,0.35196284]
[1755180098931,0.17097456,118340.0,118330.0,0.19648284]
[1755180099147,0.25685781,118340.0,118330.0,0.180634]
[1755180099350,0.25685781,118340.0,118330.0,0.025354]
[1755180099553,0.25685781,118340.0,118330.0,0.180634]
[1755180100178,0.98694485,118340.0,118330.0,0.025354]
[1755180100399,0.98694485,118340.0,118320.0,0.00038078]
[1755180100400,0.16901884,118330.0,118320.0,0.00038078]
[1755180100611,0.9044747,118330.0,118320.0,0.15558078]
[1755180100782,0.25687209,118330.0,118320.0,0.00038078]
[1755180101381,0.25371209,118330.0,118320.0,0.17152391]
[1755180101758,0.25371209,118330.0,118320.0,0.00249078]
[1755180101963,0.25371209,118330.0,118320.0,0.17152391]
[1755180102088,0.25174209,118330.0,118320.0,0.17574391]
[1755180102789,0.25174209,118330.0,118320.0,0.18302973]
[1755180103169,0.25371209,118330.0,118320.0,0.17980973]
[1755180104129,0.25371209,118330.0,118320.0,0.0107766]
[1755180104570,0.25371209,118330.0,118320.0,0.0086666]
[1755180104954,0.25371209,118330.0,118320.0,0.17769973]
[1755180105154,0.25371209,118330.0,118320.0,0.0086666]
[1755180105432,0.25687209,118330.0,118320.0,0.18081778]
[1755180105645,0.25687209,118330.0,118320.0,0.34985091]
[1755180105853,0.25687209,118330.0,118320.0,0.35813673]
[1755180106061,0.25371209,118330.0,118320.0,0.36024673]
[1755180107142,0.25371209,118330.0,118320.0,0.36346673]
[1755180107594,0.25371209,118330.0,118320.0,0.1912136]
[1755180107799,0.25174209,118330.0,118320.0,0.36330673]
[1755180108222,0.08272325,118330.0,118320.0,0.36330673]
[1755180108442,0.34,118340.0,118330.0,0.16901884]
[1755180108643,0.34,118340.0,118330.0,0.00211]
[1755180108644,0.63776436,118340.0,118330.0,0.00211]
[1755180108858,0.59369781,118340.0,118330.0,0.00810748]
[1755180109265,0.59685781,118340.0,118330.0,0.00810748]
[1755180109673,0.59785781,118340.0,118330.0,0.00810748]
[1755180109867,0.16901884,118330.0,118320.0,0.35291091]
[1755180110072,0.59588781,118340.0,118320.0,0.35502091]
[1755180110288,0.59688781,118340.0,118320.0,0.35502091]
[1755180110709,0.16901884,118330.0,118320.0,0.35502091]
[1755180111627,0.6338975,118340.0,118320.0,0.36274341]
[1755180112381,0.16901884,118330.0,118320.0,0.36274341]
[1755180112576,0.16901884,118330.0,118320.0,0.19371028]
[1755180113260,0.16901884,118330.0,118320.0,0.36274341]
[1755180113852,0.59172781,118340.0,118320.0,0.36274341]
[1755180114060,1.14660239,118340.0,118320.0,0.36274341]
[1755180114769,0.4429,118330.0,118320.0,0.36274341]
[1755180116165,0.61191884,118330.0,118320.0,0.36274341]
[1755180117189,0.81174667,118330.0,118320.0,0.02573778]
[1755180118775,1.30626667,118330.0,118320.0,0.00038078]
[1755180119109,1.86114125,118330.0,118320.0,0.00038078]
[1755180119321,0.50903313,118320.0,118310.0,0.0004]
[1755180119687,0.50903313,118320.0,118290.0,0.0004]
[1755180119688,0.5090617,118300.0,118290.0,0.0004]
[1755180119895,1.30302953,118300.0,118290.0,0.0004]
[1755180120104,1.30618953,118300.0,118290.0,0.0004]
[1755180120322,1.94323313,118300.0,118290.0,0.0004]
[1755180120530,1.38835855,118300.0,118290.0,0.0004]
[1755180120740,1.56701541,118300.0,118290.0,0.0004]
[1755180121170,1.56701541,118300.0,118290.0,0.00047843]
[1755180123047,1.57001541,118300.0,118290.0,0.00047843]
[1755180123223,1.57301541,118300.0,118290.0,0.00147843]
[1755180123455,1.49072639,118300.0,118290.0,0.00147843]
[1755180124078,0.83967938,118300.0,118290.0,0.00147843]
[1755180124283,1.49072639,118300.0,118290.0,0.00147843]
[1755180124494,1.50817541,118300.0,118290.0,0.00147843]
[1755180126866,1.33644639,118300.0,118290.0,0.00147843]
[1755180127076,1.49060639,118300.0,118290.0,0.00147843]
[1755180127899,1.54129639,118300.0,118290.0,0.00147843]
[1755180128089,1.49060639,118300.0,118290.0,0.00147843]
[1755180130626,1.33644639,118300.0,118290.0,0.00147843]
[1755180130840,1.37515156,118300.0,118290.0,0.00147843]
[1755180131445,1.54656058,118300.0,118290.0,0.00147843]
[1755180131704,0.50907599,118290.0,118280.0,0.0004]
[1755180131917,1.48443068,118290.0,118280.0,0.00044695]
[1755180132134,1.5268797,118290.0,118280.0,0.00044695]
[1755180132321,1.5268797,118290.0,118260.0,0.0004]
[1755180132322,1.1601516,118270.0,118260.0,0.0004]
[1755180132602,2.07043088,118270.0,118260.0,0.0004471]
[1755180132834,0.53411889,118260.0,118250.0,1e-08]
[1755180133061,0.53411889,118260.0,118240.0,1e-08]
[1755180133062,0.50913319,118250.0,118240.0,1e-08]
[1755180133275,1.39894345,118250.0,118240.0,1e-08]
[1755180133490,1.40192345,118250.0,118240.0,0.00013001]
[1755180133703,0.50914749,118240.0,118230.0,0.0006]
[1755180133916,0.50914749,118240.0,118230.0,0.00068656]
[1755180133917,1.39895775,118240.0,118230.0,0.00068656]
[1755180134124,1.48442218,118240.0,118230.0,0.00068656]
[1755180134342,1.32756218,118240.0,118230.0,0.00268656]
[1755180134555,0.74575074,118240.0,118230.0,0.00583656]
[1755180134760,1.39679775,118240.0,118230.0,0.00583656]
[1755180135182,0.74567074,118240.0,118230.0,0.17499836]
[1755180135402,0.08272325,118240.0,118230.0,0.17499836]
[1755180135603,0.40567074,118240.0,118230.0,0.17599836]
[1755180135728,0.08472325,118240.0,118230.0,0.17599836]
[1755180135934,0.002,118240.0,118230.0,0.24375191]
[1755180136167,0.03729698,118250.0,118230.0,0.24375191]
[1755180136168,0.03729698,118250.0,118240.0,0.16914749]
[1755180136376,0.51757483,118260.0,118240.0,0.16914749]
[1755180136377,0.67137483,118260.0,118240.0,0.17229749]
[1755180136592,0.48812657,118260.0,118250.0,0.17228319]
[1755180136791,0.67432657,118260.0,118250.0,0.17228319]
[1755180137003,0.19081831,118260.0,118250.0,0.17228319]
[1755180137455,0.19081831,118260.0,118250.0,0.17518487]
[1755180137795,0.19081831,118260.0,118250.0,0.17228319]
[1755180138020,0.03705831,118260.0,118250.0,0.17228319]
[1755180138240,0.01512572,118270.0,118260.0,0.16911889]
[1755180138460,0.25182784,118270.0,118260.0,0.16911889]
[1755180138684,0.25182784,118270.0,118260.0,0.17226889]
[1755180139114,0.27539741,118270.0,118260.0,0.17226889]
[1755180139338,0.25182784,118270.0,118260.0,0.17226889]
[1755180139543,0.26728751,118270.0,118260.0,0.00315]
[1755180139716,0.26728751,118270.0,118260.0,0.00515]
[1755180140280,0.26728751,118270.0,118260.0,0.17426889]
[1755180140483,0.42092751,118270.0,118260.0,0.17426889]
[1755180141160,0.50164936,118270.0,118260.0,0.00515]
[1755180141365,0.45825616,118270.0,118260.0,0.030519]
[1755180141589,0.45925616,118270.0,118260.0,0.031519]
[1755180141795,0.29015157,118270.0,118260.0,0.20063789]
[1755180143062,0.05378832,118270.0,118260.0,0.20063789]
[1755180143264,0.001,118270.0,118260.0,0.20063789]
[1755180143659,0.001,118270.0,118260.0,0.35262948]
[1755180144473,0.32258172,118300.0,118280.0,0.16907861]
[1755180144675,0.50035975,118300.0,118290.0,0.00515]
[1755180144874,0.16909029,118280.0,118270.0,0.15667]
[1755180145077,1.05630055,118280.0,118270.0,0.00515]
[1755180145334,1.05846055,118280.0,118270.0,0.002]
[1755180145685,1.05846055,118280.0,118270.0,0.00208656]
[1755180145885,1.14094498,118280.0,118270.0,0.00208656]
[1755180146189,1.05846055,118280.0,118270.0,0.00208656]
[1755180146640,0.40525354,118280.0,118270.0,0.17434115]
[1755180147267,0.40525354,118280.0,118270.0,0.00523656]
[1755180147472,0.40525354,118280.0,118270.0,0.17434115]
[1755180147681,0.40525354,118280.0,118270.0,0.17534115]
[1755180147859,0.40525354,118280.0,118270.0,0.00623656]
[1755180148063,0.40525354,118280.0,118270.0,0.00523656]
[1755180148452,1.14194498,118280.0,118270.0,0.00108656]
[1755180148629,1.06244055,118280.0,118270.0,0.00108656]
[1755180149168,1.40028055,118280.0,118270.0,0.00108656]
[1755180149370,1.41592952,118280.0,118270.0,0.00108656]
[1755180150541,0.16914749,118240.0,118230.0,0.0006]
[1755180150773,1.40793124,118240.0,118230.0,0.00064709]
[1755180151389,0.74511074,118240.0,118230.0,0.00064709]
[1755180151616,1.39615775,118240.0,118230.0,0.00064709]
[1755180152029,1.40013775,118240.0,118230.0,0.00164709]
[1755180152246,1.39715775,118240.0,118230.0,0.00164709]
[1755180152769,1.40013775,118240.0,118230.0,0.00164709]
[1755180152973,1.47964218,118240.0,118230.0,0.00164709]
[1755180153185,1.39715775,118240.0,118230.0,0.00164709]
[1755180153396,1.37426378,118240.0,118230.0,0.00164709]
[1755180154403,1.41265427,118240.0,118230.0,0.00164709]
[1755180154609,1.25941427,118240.0,118230.0,0.00164709]
[1755180154812,1.41253427,118240.0,118230.0,0.17395889]
[1755180155013,0.001,118240.0,118230.0,0.17395889]
[1755180155780,0.17014749,118240.0,118230.0,0.17395889]
[1755180155989,0.61304749,118240.0,118230.0,0.00479709]
[1755180156185,1.42930218,118240.0,118230.0,0.00164709]
[1755180156387,1.42930218,118240.0,118230.0,0.17395889]
[1755180156618,1.34681775,118240.0,118230.0,0.17395889]
[1755180156818,1.34681775,118240.0,118230.0,0.00479709]
[1755180157257,1.34681775,118240.0,118230.0,0.17395889]
[1755180157652,1.34681775,118240.0,118230.0,0.00479709]
[1755180157906,1.34681775,118240.0,118230.0,0.00164709]
[1755180158091,1.42930218,118240.0,118230.0,0.17080889]
[1755180158459,1.34681775,118240.0,118230.0,0.17080889]
[1755180158640,1.34681775,118240.0,118230.0,0.17381889]
[1755180158840,1.34681775,118240.0,118230.0,0.00465709]
[1755180159188,1.34681775,118240.0,118230.0,0.17381889]
[1755180159399,1.34681775,118240.0,118230.0,0.00465709]
[1755180159674,1.42930218,118240.0,118230.0,0.00380709]
[1755180160055,1.43142218,118240.0,118230.0,0.00380709]
[1755180160496,1.34893775,118240.0,118230.0,0.17296889]
[1755180160702,1.34681775,118240.0,118230.0,0.17296889]
[1755180161011,1.34681775,118240.0,118230.0,0.00380709]
[1755180161227,0.90391775,118240.0,118230.0,0.00380709]
[1755180161450,0.90391775,118240.0,118230.0,0.02918309]
[1755180161688,0.98852218,118240.0,118230.0,0.02918309]
[1755180161896,0.98852218,118240.0,118230.0,0.02702309]
[1755180161897,0.99171218,118240.0,118230.0,0.02702309]
[1755180162541,1.33171218,118240.0,118230.0,0.02702309]
[1755180162746,1.33171218,118240.0,118230.0,0.00164709]
[1755180163592,0.68066517,118240.0,118230.0,0.00164709]
[1755180163817,1.33171218,118240.0,118230.0,0.00164709]
[1755180164355,1.39457218,118240.0,118230.0,0.00164709]
[1755180164560,0.1691618,118230.0,118220.0,0.0004]
[1755180164781,0.83027948,118230.0,118220.0,0.00048655]
[1755180164986,1.55986265,118230.0,118220.0,0.00048655]
[1755180165196,0.16917611,118220.0,118210.0,0.0004]
[1755180165353,0.90613637,118220.0,118210.0,0.00087973]
[1755180165554,0.9886208,118220.0,118210.0,0.00087973]
[1755180165851,1.1413408,118220.0,118210.0,0.00087973]
[1755180166051,0.9886208,118220.0,118210.0,0.00087973]
[1755180166264,0.52882556,118220.0,118210.0,0.00087973]
[1755180166379,1.17987257,118220.0,118210.0,0.00087973]
[1755180166598,1.02719257,118220.0,118210.0,0.00087973]
[1755180167015,1.04285821,118220.0,118210.0,0.00087973]
[1755180167221,1.38497821,118220.0,118210.0,0.00087973]
[1755180167421,0.64713677,118220.0,118210.0,0.00303973]
[1755180167694,0.64713677,118220.0,118210.0,0.00087973]
[1755180167695,1.41956201,118220.0,118210.0,0.00087973]
[1755180167959,1.26692201,118220.0,118210.0,0.00087973]
[1755180168095,0.768515,118220.0,118210.0,0.00087973]
[1755180168305,1.41954108,118220.0,118210.0,0.00087973]
[1755180168502,1.50202551,118220.0,118210.0,0.00087973]
[1755180168730,1.34938551,118220.0,118210.0,0.00087973]
[1755180168931,1.50202551,118220.0,118210.0,0.00087973]
[1755180170107,1.53937755,118220.0,118210.0,0.00087973]
[1755180171482,1.50202551,118220.0,118210.0,0.00087973]
[1755180172960,0.6983385,118220.0,118210.0,0.00087973]
[1755180173160,0.76831183,118220.0,118210.0,0.00087973]
[1755180173372,1.41616884,118220.0,118210.0,0.00087973]